fUST/lending_fUST_20240906
["ID","MTS","AMOUNT","RATE_DAILY","PERIOD"]
[337383740,1725635476173,-500.0,0.00020273,2]
[337383742,1725635476183,-500.0,0.00020273,2]
[337383744,1725635476193,-2585.86172,0.00020273,2]
[337383746,1725635476203,-659.89,0.00020273,2]
[337383748,1725635476212,-1870.38,0.00020273,2]
[337383750,1725635476222,-500.0,0.00020273,2]
[337383752,1725635476236,-2585.86172,0.00020273,2]
[337383754,1725635476245,-1087.66,0.00020273,2]
[337383756,1725635476255,-2189.64,0.00020273,2]
[337383758,1725635476264,-500.0,0.00020273,2]
[337383760,1725635476275,-151.0,0.00020273,2]
[337383762,1725635476284,-500.0,0.00020273,2]
[337383764,1725635476294,-500.0,0.00020273,2]
[337383766,1725635476304,-930.47,0.00020273,2]
[337383768,1725635476314,-500.0,0.00020273,2]
[337383770,1725635476324,-1407.25,0.00020273,2]
[337383772,1725635476334,-1301.2,0.00020273,2]
[337383775,1725635476344,-500.0,0.00020273,2]
[337383820,1725635476779,-222.161954,0.00020273,2]
[337383823,1725635476790,-500.0,0.00020273,2]
[337383825,1725635476800,-500.0,0.00020273,2]
[337383827,1725635476813,-1056.08,0.00020273,2]
[337383829,1725635476823,-151.0,0.00020273,2]
[337383831,1725635476833,-500.0,0.00020273,2]
[337383833,1725635476843,-500.0,0.00020273,2]
[337383835,1725635476853,-208.211729,0.00020273,2]
[337383837,1725635476862,-500.0,0.00020273,2]
[337383839,1725635476872,-3042.96,0.00020273,2]
[337383842,1725635476882,-208.211729,0.00020273,2]
[337383844,1725635476891,-151.0,0.00020273,2]
[337383846,1725635476900,-2093.22,0.00020273,2]
[337383847,1725635476909,-1342.45,0.00020273,2]
[337383849,1725635476919,-1422.63,0.00020273,2]
[337383852,1725635476929,-500.0,0.00020273,2]
[337383854,1725635476938,-500.0,0.00020273,2]
[337383856,1725635476949,-151.0,0.00020273,2]
[337383858,1725635476959,-500.0,0.00020273,2]
[337383860,1725635476969,-2852.83,0.00020273,2]
[337383862,1725635476983,-500.0,0.00020273,2]
[337383864,1725635476993,-162.598577,0.00020273,2]
[337383866,1725635477002,-1050.5,0.00020273,2]
[337383868,1725635477012,-163.473992,0.00020273,2]
[337383870,1725635477022,-500.0,0.00020273,2]
[337383872,1725635477032,-603.02,0.00020273,2]
[337383874,1725635477043,-500.0,0.00020273,2]
[337383876,1725635477053,-825.83,0.00020273,2]
[337383878,1725635477062,-151.0,0.00020273,2]
[337383880,1725635477071,-735.62,0.00020273,2]
[337383882,1725635477081,-500.0,0.00020273,2]
[337383884,1725635477091,-151.0,0.00020273,2]
[337383886,1725635477101,-500.0,0.00020273,2]
[337383888,1725635477112,-500.0,0.00020273,2]
[337383890,1725635477122,-25870.76,0.00020273,2]
[337383892,1725635477131,-2036.65,0.00020273,2]
[337383894,1725635477143,-1054.12,0.00020273,2]
[337383896,1725635477152,-585.32,0.00020273,2]
[337383899,1725635477163,-1152.21,0.00020273,2]
[337383901,1725635477174,-500.0,0.00020273,2]
[337383903,1725635477185,-2167.46,0.00020273,2]
[337383905,1725635477195,-500.0,0.00020273,2]
[337383907,1725635477205,-500.0,0.00020273,2]
[337383909,1725635477214,-500.0,0.00020273,2]
[337383911,1725635477225,-797.57,0.00020273,2]
[337383913,1725635477239,-2005.74,0.00020273,2]
[337383916,1725635477250,-500.0,0.00020273,2]
[337383918,1725635477262,-500.0,0.00020273,2]
[337383920,1725635477272,-845.93,0.00020273,2]
[337383922,1725635477282,-500.0,0.00020273,2]
[337383924,1725635477292,-712.12,0.00020273,2]
[337383926,1725635477301,-500.0,0.00020273,2]
[337383928,1725635477310,-500.0,0.00020273,2]
[337383930,1725635477321,-500.0,0.00020273,2]
[337383932,1725635477331,-1796.13,0.00020273,2]
[337383934,1725635477340,-2282.79,0.00020273,2]
[337383936,1725635477351,-500.0,0.00020273,2]
[337383938,1725635477360,-500.0,0.00020273,2]
[337383940,1725635477371,-1903.93,0.00020273,2]
[337383942,1725635477380,-500.0,0.00020273,2]
[337383944,1725635477390,-2250.0,0.00020273,2]
[337383946,1725635477401,-151.0,0.00020273,2]
[337383948,1725635477411,-500.0,0.00020273,2]
[337383950,1725635477420,-599.93,0.00020273,2]
[337383952,1725635477432,-1013.16,0.00020273,2]
[337383954,1725635477441,-500.0,0.00020273,2]
[337383956,1725635477451,-530.72,0.00020273,2]
[337383958,1725635477461,-500.0,0.00020273,2]
[337383960,1725635477471,-2136.09,0.00020273,2]
[337383962,1725635477486,-500.0,0.00020273,2]
[337383964,1725635477502,-519.57,0.00020273,2]
[337383966,1725635477512,-61494.33,0.00020273,2]
[337383968,1725635477522,-206.369492,0.00020273,2]
[337383970,1725635477533,-151.0,0.00020273,2]
[337383972,1725635477543,-1116.46,0.00020273,2]
[337383975,1725635477553,-206.369492,0.00020273,2]
[337383977,1725635477564,-500.0,0.00020273,2]
[337383979,1725635477575,-777.43137,0.00020273,2]
[337383981,1725635477584,-500.0,0.00020273,2]
[337383983,1725635477594,-500.0,0.00020273,2]
[337383985,1725635477604,-47567.92,0.00020273,2]
[337383987,1725635477613,-991.68,0.00020273,2]
[337383989,1725635477622,-777.43137,0.00020273,2]
[337383991,1725635477632,-3781.61257748,0.000204,2]
[337383993,1725635477641,-3781.61257746,0.000204,2]
[337383995,1725635477651,-3781.61257746,0.000204,2]
[337383996,1725635477663,-3781.61257746,0.000204,2]
[337383999,1725635477674,-3119.08702818,0.00020497,2]
[337384001,1725635477683,-69724.53698863,0.00020547,5]
[337384003,1725635477692,-151.0,0.00020547,2]
[337384005,1725635477703,-500.0,0.00020547,2]
[337384007,1725635477712,-500.0,0.00020547,2]
[337384009,1725635477723,-500.0,0.00020547,2]
[337384011,1725635477732,-500.0,0.00020547,2]
[337384013,1725635477742,-500.0,0.00020547,2]
[337384015,1725635477752,-500.0,0.00020547,2]
[337384017,1725635477762,-500.0,0.00020547,2]
[337384019,1725635477772,-500.0,0.00020547,2]
[337384020,1725635477782,-500.0,0.00020547,2]
[337384022,1725635477791,-500.0,0.00020547,2]
[337384024,1725635477802,-500.0,0.00020547,2]
[337384026,1725635477811,-612.50000002,0.00020547,2]
[337384028,1725635477822,-212.80284866,0.00020547,2]
[337384030,1725635477831,-500.0,0.00020547,2]
[337384032,1725635477841,-925.3,0.00020547,2]
[337384034,1725635477850,-500.0,0.00020547,2]
[337384036,1725635477859,-500.0,0.00020547,2]
[337384038,1725635477869,-500.0,0.00020547,2]
[337384040,1725635477878,-923.18,0.00020547,2]
[337384042,1725635477887,-500.0,0.00020547,2]
[337384044,1725635477897,-500.0,0.00020547,2]
[337384046,1725635477906,-500.0,0.00020547,2]
[337384048,1725635477916,-500.0,0.00020547,2]
[337384051,1725635477926,-151.0,0.00020547,2]
[337384053,1725635477936,-151.0,0.00020547,2]
[337384055,1725635477945,-500.0,0.00020547,2]
[337384057,1725635477954,-500.0,0.00020547,2]
[337384059,1725635477964,-459.00752013,0.00020547,2]
[337384061,1725635477973,-556.09,0.00020547,2]
[337384063,1725635477994,-500.0,0.00020547,2]
[337384065,1725635478004,-347.58726048,0.00020547,2]
[337384067,1725635478014,-500.0,0.00020547,2]
[337384069,1725635478023,-500.0,0.00020547,2]
[337384070,1725635478033,-651.2,0.00020547,2]
[337384072,1725635478043,-500.0,0.00020547,2]
[337384074,1725635478054,-1202.22,0.00020547,2]
[337384077,1725635478064,-1418.48,0.00020547,2]
[337384079,1725635478074,-519.47,0.00020547,2]
[337384081,1725635478084,-500.0,0.00020547,2]
[337384083,1725635478094,-500.0,0.00020547,2]
[337384085,1725635478104,-500.0,0.00020547,2]
[337384087,1725635478114,-500.0,0.00020547,2]
[337384088,1725635478124,-500.0,0.00020547,2]
[337384090,1725635478134,-1118.820598,0.00020547,2]
[337384092,1725635478143,-1118.820598,0.00020547,2]
[337384094,1725635478154,-500.0,0.00020547,2]
[337384097,1725635478164,-356.13441258,0.00020547,2]
[337384099,1725635478174,-525.77,0.00020547,2]
[337384101,1725635478184,-1034.0,0.00020547,2]
[337384103,1725635478193,-500.0,0.00020547,2]
[337384105,1725635478203,-545.55,0.00020547,2]
[337384106,1725635478213,-500.0,0.00020547,2]
[337384108,1725635478223,-500.0,0.00020547,2]
[337384110,1725635478233,-421.37385268,0.00020547,2]
[337384112,1725635478244,-500.0,0.00020547,2]
[337384114,1725635478254,-500.0,0.00020547,2]
[337384116,1725635478263,-500.0,0.00020547,2]
[337384118,1725635478273,-500.0,0.00020547,2]
[337384120,1725635478283,-500.0,0.00020547,2]
[337384122,1725635478293,-1295.57,0.00020547,2]
[337384124,1725635478303,-500.0,0.00020547,2]
[337384126,1725635478312,-500.0,0.00020547,2]
[337384128,1725635478321,-402.37843442,0.00020547,2]
[337384130,1725635478331,-1571.91,0.00020547,2]
[337384132,1725635478341,-151.0,0.00020547,2]
[337384134,1725635478352,-1237.9,0.00020547,2]
[337384136,1725635478361,-471.10307044,0.00020547,2]
[337384138,1725635478372,-216.731902,0.00020547,2]
[337384140,1725635478381,-589.91,0.00020547,2]
[337384142,1725635478392,-1264.18,0.00020547,2]
[337384144,1725635478402,-500.0,0.00020547,2]
[337384146,1725635478412,-500.0,0.00020547,2]
[337384148,1725635478421,-643.02,0.00020547,2]
[337384150,1725635478431,-500.0,0.00020547,2]
[337384152,1725635478441,-808.94,0.00020547,2]
[337384154,1725635478451,-500.0,0.00020547,2]
[337384156,1725635478461,-1186.79,0.00020547,2]
[337384159,1725635478471,-500.0,0.00020547,2]
[337384161,1725635478488,-500.0,0.00020547,2]
[337384163,1725635478499,-500.0,0.00020547,2]
[337384165,1725635478512,-500.0,0.00020547,2]
[337384166,1725635478521,-601.88,0.00020547,2]
[337384168,1725635478530,-500.0,0.00020547,2]
[337384170,1725635478540,-548.95,0.00020547,2]
[337384172,1725635478549,-500.0,0.00020547,2]
[337384174,1725635478559,-587.02,0.00020547,2]
[337384176,1725635478569,-500.0,0.00020547,2]
[337384178,1725635478578,-570.98,0.00020547,2]
[337384180,1725635478588,-500.0,0.00020547,2]
[337384182,1725635478598,-500.0,0.00020547,2]
[337384184,1725635478608,-184.196246,0.00020547,2]
[337384186,1725635478617,-1624.21,0.00020547,2]
[337384188,1725635478626,-500.0,0.00020547,2]
[337384190,1725635478635,-500.0,0.00020547,2]
[337384192,1725635478645,-184.196246,0.00020547,2]
[337384194,1725635478655,-959.09,0.00020547,2]
[337384196,1725635478667,-500.0,0.00020547,2]
[337384198,1725635478676,-529.54,0.00020547,2]
[337384200,1725635478687,-500.0,0.00020547,2]
[337384202,1725635478697,-500.0,0.00020547,2]
[337384204,1725635478708,-500.0,0.00020547,2]
[337384206,1725635478718,-1193.407379,0.00020547,2]
[337384208,1725635478729,-619.87,0.00020547,2]
[337384210,1725635478746,-1193.407379,0.00020547,2]
[337384212,1725635478755,-500.0,0.00020547,2]
[337384214,1725635478765,-500.0,0.00020547,2]
[337384216,1725635478774,-500.0,0.00020547,2]
[337384218,1725635478784,-1123.51,0.00020547,2]
[337384220,1725635478794,-151.0,0.00020547,2]
[337384222,1725635478804,-500.0,0.00020547,2]
[337384225,1725635478814,-500.0,0.00020547,2]
[337384227,1725635478823,-500.0,0.00020547,2]
[337384229,1725635478834,-500.0,0.00020547,2]
[337384231,1725635478844,-500.0,0.00020547,2]
[337384233,1725635478855,-500.0,0.00020547,2]
[337384235,1725635478864,-500.0,0.00020547,2]
[337384237,1725635478874,-1306.31,0.00020547,2]
[337384239,1725635478883,-151.0,0.00020547,2]
[337384241,1725635478893,-500.0,0.00020547,2]
[337384243,1725635478904,-151.0,0.00020547,2]
[337384245,1725635478915,-500.0,0.00020547,2]
[337384247,1725635478925,-500.0,0.00020547,2]
[337384249,1725635478935,-860.27,0.00020547,2]
[337384251,1725635478944,-512.76974596,0.00020547,2]
[337384253,1725635478955,-151.0,0.00020547,2]
[337384255,1725635478965,-559.04,0.00020547,2]
[337384257,1725635478975,-1022.33,0.00020547,2]
[337384259,1725635478987,-1335.92,0.00020547,2]
[337384261,1725635478997,-500.0,0.00020547,2]
[337384262,1725635479007,-500.0,0.00020547,2]
[337384264,1725635479016,-1961.67,0.00020547,2]
[337384266,1725635479026,-899.05,0.00020547,2]
[337384268,1725635479035,-500.0,0.00020547,2]
[337384270,1725635479046,-500.0,0.00020547,2]
[337384272,1725635479055,-619.65,0.00020547,2]
[337384274,1725635479065,-500.0,0.00020547,2]
[337384276,1725635479075,-524.01,0.00020547,2]
[337384278,1725635479085,-500.0,0.00020547,2]
[337384280,1725635479095,-500.0,0.00020547,2]
[337384282,1725635479105,-500.0,0.00020547,2]
[337384284,1725635479114,-500.0,0.00020547,2]
[337384286,1725635479125,-500.0,0.00020547,2]
[337384288,1725635479137,-606.443957,0.00020547,2]
[337384290,1725635479146,-500.0,0.00020547,2]
[337384292,1725635479156,-1054.39,0.00020547,2]
[337384294,1725635479166,-333.38771814,0.00020547,2]
[337384296,1725635479176,-1709.92,0.00020547,2]
[337384298,1725635479185,-500.0,0.00020547,2]
[337384300,1725635479195,-608.17,0.00020547,2]
[337384302,1725635479204,-1974.51,0.00020547,2]
[337384304,1725635479214,-500.0,0.00020547,2]
[337384306,1725635479224,-500.0,0.00020547,2]
[337384307,1725635479236,-500.0,0.00020547,2]
[337384309,1725635479246,-500.0,0.00020547,2]
[337384311,1725635479256,-500.0,0.00020547,2]
[337384313,1725635479267,-500.0,0.00020547,2]
[337384315,1725635479276,-1144.39,0.00020547,2]
[337384317,1725635479286,-500.0,0.00020547,2]
[337384319,1725635479296,-500.0,0.00020547,2]
[337384321,1725635479307,-1367.3,0.00020547,2]
[337384323,1725635479317,-872.73,0.00020547,2]
[337384325,1725635479328,-500.0,0.00020547,2]
[337384327,1725635479338,-500.0,0.00020547,2]
[337384329,1725635479347,-1320.77,0.00020547,2]
[337384331,1725635479357,-1389.96,0.00020547,2]
[337384333,1725635479367,-500.0,0.00020547,2]
[337384335,1725635479377,-500.0,0.00020547,2]
[337384337,1725635479387,-751.95,0.00020547,2]
[337384339,1725635479397,-500.0,0.00020547,2]
[337384341,1725635479406,-500.0,0.00020547,2]
[337384343,1725635479417,-571.12,0.00020547,2]
[337384345,1725635479427,-500.0,0.00020547,2]
[337384347,1725635479437,-1191.1,0.00020547,2]
[337384349,1725635479447,-500.0,0.00020547,2]
[337384351,1725635479457,-500.0,0.00020547,2]
[337384353,1725635479466,-1742.36,0.00020547,2]
[337384355,1725635479476,-6868.04,0.00020547,2]
[337384357,1725635479491,-500.0,0.00020547,2]
[337384359,1725635479501,-1225.08,0.00020547,2]
[337384361,1725635479511,-515.26,0.00020547,2]
[337384363,1725635479521,-1263.83,0.00020547,2]
[337384365,1725635479532,-1124.13,0.00020547,2]
[337384367,1725635479542,-669.78,0.00020547,2]
[337384369,1725635479552,-500.0,0.00020547,2]
[337384371,1725635479562,-2764.07,0.00020547,2]
[337384373,1725635479573,-510.55675719,0.00020547,2]
[337384374,1725635479583,-1210.88,0.00020547,2]
[337384376,1725635479593,-500.0,0.00020547,2]
[337384378,1725635479603,-1286.07,0.00020547,2]
[337384380,1725635479614,-500.0,0.00020547,2]
[337384382,1725635479624,-5445.49,0.00020547,2]
[337384384,1725635479633,-500.0,0.00020547,2]
[337384386,1725635479643,-646.12,0.00020547,2]
[337384388,1725635479653,-500.0,0.00020547,2]
[337384390,1725635479664,-1576.49,0.00020547,2]
[337384392,1725635479674,-62882.5,0.00020547,2]
[337384394,1725635479684,-1881.02,0.00020547,2]
[337384396,1725635479693,-500.0,0.00020547,2]
[337384398,1725635479704,-829.68,0.00020547,2]
[337384400,1725635479715,-500.0,0.00020547,2]
[337384402,1725635479725,-705.41,0.00020547,2]
[337384404,1725635479739,-500.0,0.00020547,2]
[337384406,1725635479749,-500.0,0.00020547,2]
[337384408,1725635479758,-2941.86,0.00020547,2]
[337384410,1725635479768,-518.81,0.00020547,2]
[337384412,1725635479779,-602.59,0.00020547,2]
[337384414,1725635479789,-1223.4,0.00020547,2]
[337384416,1725635479799,-540.47226104,0.00020547,2]
[337384418,1725635479809,-1815.08,0.00020547,2]
[337384420,1725635479819,-500.0,0.00020547,2]
[337384422,1725635479829,-1109.4,0.00020547,2]
[337384424,1725635479838,-500.0,0.00020547,2]
[337384426,1725635479848,-500.0,0.00020547,2]
[337384428,1725635479858,-1302.53,0.00020547,2]
[337384430,1725635479868,-850.23,0.00020547,2]
[337384432,1725635479878,-891.12,0.00020547,2]
[337384434,1725635479888,-1759.32,0.00020547,2]
[337384436,1725635479898,-1750.7,0.00020547,2]
[337384438,1725635479908,-500.0,0.00020547,2]
[337384440,1725635479918,-500.0,0.00020547,2]
[337384442,1725635479928,-1759.01,0.00020547,2]
[337384444,1725635479938,-766.52,0.00020547,2]
[337384446,1725635479949,-825.05,0.00020547,2]
[337384448,1725635479959,-1824.85,0.00020547,2]
[337384450,1725635479969,-500.0,0.00020547,2]
[337384452,1725635479981,-500.0,0.00020547,2]
[337384454,1725635479998,-703.18,0.00020547,2]
[337384456,1725635480007,-658.08,0.00020547,2]
[337384458,1725635480018,-507.94,0.00020547,2]
[337384461,1725635480028,-686.01,0.00020547,2]
[337384463,1725635480038,-500.0,0.00020547,2]
[337384465,1725635480049,-500.0,0.00020547,2]
[337384467,1725635480059,-659.89,0.00020547,2]
[337384469,1725635480069,-1870.38,0.00020547,2]
[337384482,1725635480201,-500.0,0.00020547,2]
[337384484,1725635480212,-1087.66,0.00020547,2]
[337384487,1725635480222,-2189.64,0.00020547,2]
[337384488,1725635480235,-500.0,0.00020547,2]
[337384490,1725635480245,-500.0,0.00020547,2]
[337384492,1725635480255,-500.0,0.00020547,2]
[337384494,1725635480264,-930.47,0.00020547,2]
[337384496,1725635480274,-500.0,0.00020547,2]
[337384498,1725635480283,-1407.25,0.00020547,2]
[337384500,1725635480293,-1301.2,0.00020547,2]
[337384502,1725635480303,-500.0,0.00020547,2]
[337384504,1725635480313,-500.0,0.00020547,2]
[337384506,1725635480323,-500.0,0.00020547,2]
[337384508,1725635480332,-1056.08,0.00020547,2]
[337384510,1725635480343,-500.0,0.00020547,2]
[337384512,1725635480353,-500.0,0.00020547,2]
[337384514,1725635480363,-500.0,0.00020547,2]
[337384516,1725635480373,-3042.96,0.00020547,2]
[337384518,1725635480384,-2093.22,0.00020547,2]
[337384520,1725635480394,-1342.45,0.00020547,2]
[337384522,1725635480404,-1422.63,0.00020547,2]
[337384524,1725635480415,-500.0,0.00020547,2]
[337384526,1725635480425,-500.0,0.00020547,2]
[337384528,1725635480435,-448.44217203,0.00020547,2]
[337384530,1725635480445,-2852.83,0.00020547,2]
[337384532,1725635480455,-500.0,0.00020547,2]
[337384534,1725635480465,-1050.5,0.00020547,2]
[337384536,1725635480475,-500.0,0.00020547,2]
[337384538,1725635480490,-603.02,0.00020547,2]
[337384540,1725635480500,-500.0,0.00020547,2]
[337384542,1725635480510,-825.83,0.00020547,2]
[337384544,1725635480520,-735.62,0.00020547,2]
[337384546,1725635480529,-500.0,0.00020547,2]
[337384548,1725635480539,-500.0,0.00020547,2]
[337384550,1725635480550,-500.0,0.00020547,2]
[337384552,1725635480560,-24580.34195987,0.00020547,2]
[337384556,1725635480589,-1290.41804013,0.00020547,2]
[337384558,1725635480599,-2036.65,0.00020547,2]
[337384560,1725635480609,-1054.12,0.00020547,2]
[337384562,1725635480619,-585.32,0.00020547,2]
[337384564,1725635480629,-1081.99195989,0.00020547,2]
[337384567,1725635480646,-70.21804011,0.00020547,2]
[337384569,1725635480657,-500.0,0.00020547,2]
[337384571,1725635480670,-2167.46,0.00020547,2]
[337384573,1725635480679,-500.0,0.00020547,2]
[337384575,1725635480690,-500.0,0.00020547,2]
[337384577,1725635480701,-500.0,0.00020547,2]
[337384579,1725635480711,-797.57,0.00020547,2]
[337384581,1725635480721,-2005.74,0.00020547,2]
[337384583,1725635480733,-500.0,0.00020547,2]
[337384585,1725635480745,-500.0,0.00020547,2]
[337384587,1725635480755,-845.93,0.00020547,2]
[337384589,1725635480764,-500.0,0.00020547,2]
[337384591,1725635480774,-712.12,0.00020547,2]
[337384593,1725635480783,-500.0,0.00020547,2]
[337384595,1725635480792,-500.0,0.00020547,2]
[337384597,1725635480803,-500.0,0.00020547,2]
[337384599,1725635480813,-1796.13,0.00020547,2]
[337384601,1725635480822,-2282.79,0.00020547,2]
[337384603,1725635480832,-500.0,0.00020547,2]
[337384605,1725635480841,-500.0,0.00020547,2]
[337384607,1725635480851,-1903.93,0.00020547,2]
[337384609,1725635480861,-2250.0,0.00020547,2]
[337384611,1725635480871,-500.0,0.00020547,2]
[337384613,1725635480881,-151.0,0.00020547,2]
[337384615,1725635480891,-500.0,0.00020547,2]
[337384617,1725635480901,-599.93,0.00020547,2]
[337384619,1725635480910,-1013.16,0.00020547,2]
[337384621,1725635480920,-500.0,0.00020547,2]
[337384623,1725635480929,-530.72,0.00020547,2]
[337384625,1725635480940,-628.84564702,0.00020547,2]
[337384627,1725635480950,-2136.09,0.00020547,2]
[337384629,1725635480961,-500.0,0.00020547,2]
[337384631,1725635480972,-519.57,0.00020547,2]
[337384633,1725635480986,-61494.33,0.00020547,2]
[337384636,1725635480999,-259.313236,0.00020547,2]
[337384638,1725635481010,-1116.46,0.00020547,2]
[337384640,1725635481019,-500.0,0.00020547,2]
[337384642,1725635481029,-777.43137,0.00020547,2]
[337384644,1725635481040,-500.0,0.00020547,2]
[337384646,1725635481054,-47567.92,0.00020547,2]
[337384648,1725635481064,-991.68,0.00020547,2]
[337384650,1725635481074,-777.43137,0.00020547,2]
[337384652,1725635481083,-5621.50000402,0.00020613,2]
[337384654,1725635481094,-1075.60899912,0.0002064,2]
[337384656,1725635481104,-1783.87433567,0.00020805,2]
[337384658,1725635481113,-500.0,0.00020821,2]
[337384660,1725635481123,-527.3880981,0.00020821,2]
[337384662,1725635481132,-500.0,0.00020821,2]
[337384664,1725635481141,-500.0,0.00020821,2]
[337384666,1725635481150,-500.0,0.00020821,2]
[337384668,1725635481160,-500.0,0.00020821,2]
[337384670,1725635481169,-500.0,0.00020821,2]
[337384672,1725635481179,-500.0,0.00020821,2]
[337384674,1725635481189,-500.0,0.00020821,2]
[337384676,1725635481198,-500.0,0.00020821,2]
[337384678,1725635481207,-500.0,0.00020821,2]
[337384680,1725635481217,-500.0,0.00020821,2]
[337384682,1725635481226,-925.3,0.00020821,2]
[337384684,1725635481245,-500.0,0.00020821,2]
[337384685,1725635481257,-227.40913823,0.00020821,2]
[337384686,1725635481267,-549.22052655,0.00020821,2]
[337384687,1725635481276,-151.0,0.00020821,2]
[337384688,1725635481286,-923.18,0.00020821,2]
[337384689,1725635481296,-151.0,0.00020821,2]
[337384690,1725635481309,-198.688948,0.00020821,2]
[337384691,1725635481319,-500.0,0.00020821,2]
[337384692,1725635481329,-500.0,0.00020821,2]
[337384693,1725635481339,-500.0,0.00020821,2]
[337384694,1725635481348,-500.0,0.00020821,2]
[337384695,1725635481358,-630.59749355,0.00020821,2]
[337384696,1725635481368,-500.0,0.00020821,2]
[337384697,1725635481379,-556.09,0.00020821,2]
[337384698,1725635481388,-500.0,0.00020821,2]
[337384699,1725635481398,-42.86457826,0.00020821,2]
[337384710,1725635481615,-457.13542174,0.00020821,2]
[337384713,1725635481628,-500.0,0.00020821,2]
[337384715,1725635481639,-651.2,0.00020821,2]
[337384717,1725635481651,-500.0,0.00020821,2]
[337384719,1725635481669,-1202.22,0.00020821,2]
[337384721,1725635481679,-1418.48,0.00020821,2]
[337384723,1725635481689,-519.47,0.00020821,2]
[337384725,1725635481699,-500.0,0.00020821,2]
[337384727,1725635481708,-500.0,0.00020821,2]
[337384729,1725635481718,-151.0,0.00020821,2]
[337384732,1725635481728,-500.0,0.00020821,2]
[337384734,1725635481745,-500.0,0.00020821,2]
[337384736,1725635481755,-500.0,0.00020821,2]
[337384738,1725635481764,-494.92135,0.00020821,2]
[337384740,1725635481775,-500.0,0.00020821,2]
[337384742,1725635481784,-494.92135,0.00020821,2]
[337384744,1725635481793,-525.77,0.00020821,2]
[337384746,1725635481803,-1034.0,0.00020821,2]
[337384748,1725635481812,-500.0,0.00020821,2]
[337384750,1725635481822,-151.0,0.00020821,2]
[337384752,1725635481831,-545.55,0.00020821,2]
[337384754,1725635481841,-151.0,0.00020821,2]
[337384756,1725635481852,-631.40434068,0.00020821,2]
[337384758,1725635481863,-500.0,0.00020821,2]
[337384760,1725635481873,-500.0,0.00020821,2]
[337384762,1725635481882,-500.0,0.00020821,2]
[337384764,1725635481892,-500.0,0.00020821,2]
[337384766,1725635481901,-500.0,0.00020821,2]
[337384768,1725635481910,-500.0,0.00020821,2]
[337384770,1725635481921,-1295.57,0.00020821,2]
[337384772,1725635481933,-500.0,0.00020821,2]
[337384774,1725635481943,-500.0,0.00020821,2]
[337384776,1725635481952,-1571.91,0.00020821,2]
[337384778,1725635481961,-1237.9,0.00020821,2]
[337384780,1725635481971,-589.91,0.00020821,2]
[337384782,1725635481984,-1264.18,0.00020821,2]
[337384784,1725635481993,-531.52609781,0.00020821,2]
[337384786,1725635482003,-500.0,0.00020821,2]
[337384788,1725635482012,-643.02,0.00020821,2]
[337384790,1725635482021,-503.41092414,0.00020821,2]
[337384792,1725635482031,-808.94,0.00020821,2]
[337384795,1725635482040,-500.0,0.00020821,2]
[337384797,1725635482052,-1186.79,0.00020821,2]